[Event "Early-Titled-Tuesday-Blitz-September-12-2023"]
[Site "Chess.com"]
[Date "2023.09.12"]
[Round "6"]
[White "Inepton_Fermion"]
[Black "C_K_G"]
[Result "0-1"]
[WhiteElo "2355"]
[BlackElo "1996"]
[TimeControl "180+1"]
[EndTime "9:06:41 PDT"]
[Termination "C_K_G won by checkmate"]

1. e4 {[%clk 0:03:00.9]} 1... c5 {[%clk 0:02:59.6]} 2. Nf3 {[%clk 0:03:01.2]}
2... d6 {[%clk 0:02:59.5]} 3. d4 {[%clk 0:03:01.8]} 3... cxd4 {[%clk 0:02:59.7]}
4. Nxd4 {[%clk 0:03:02.7]} 4... Nf6 {[%clk 0:03:00.1]} 5. Nc3 {[%clk 0:03:03.3]}
5... a6 {[%clk 0:03:00.5]} 6. Rg1 {[%clk 0:03:02.4]} 6... e5 {[%clk 0:03:00.6]}
7. Nb3 {[%clk 0:03:01.8]} 7... h5 {[%clk 0:03:00.7]} 8. Bg5 {[%clk 0:03:01.1]}
8... Be7 {[%clk 0:02:58.3]} 9. Qd2 {[%clk 0:02:59.4]} 9... Be6 {[%clk
0:02:57.5]} 10. O-O-O {[%clk 0:02:59.5]} 10... Nbd7 {[%clk 0:02:57]} 11. f4
{[%clk 0:02:59.9]} 11... Qc7 {[%clk 0:02:50.2]} 12. f5 {[%clk 0:02:57.6]} 12...
Bc4 {[%clk 0:02:49.9]} 13. Bxc4 {[%clk 0:02:56.2]} 13... Qxc4 {[%clk 0:02:49.9]}
14. Kb1 {[%clk 0:02:38.7]} 14... b5 {[%clk 0:02:43.8]} 15. Rge1 {[%clk
0:02:25.5]} 15... b4 {[%clk 0:02:40.1]} 16. Nd5 {[%clk 0:02:04.7]} 16... Nxd5
{[%clk 0:02:36.8]} 17. exd5 {[%clk 0:02:04.8]} 17... Nf6 {[%clk 0:02:20.5]} 18.
Na5 {[%clk 0:01:54.8]} 18... Qg4 {[%clk 0:02:10.7]} 19. Nc6 {[%clk 0:01:44]}
19... Qxf5 {[%clk 0:01:24.6]} 20. Bxf6 {[%clk 0:01:27.3]} 20... Bxf6 {[%clk
0:01:22]} 21. Qxb4 {[%clk 0:01:25.8]} 21... O-O {[%clk 0:01:17.2]} 22. Qxd6
{[%clk 0:01:23.7]} 22... e4 {[%clk 0:01:03.8]} 23. Qb4 {[%clk 0:00:50.9]} 23...
Rfe8 {[%clk 0:00:55.6]} 24. d6 {[%clk 0:00:49.5]} 24... Qd7 {[%clk 0:00:53.7]}
25. Na5 {[%clk 0:00:15]} 25... Rab8 {[%clk 0:00:48.9]} 26. Qc4 {[%clk
0:00:12.1]} 26... Rxb2+ {[%clk 0:00:48]} 27. Kc1 {[%clk 0:00:12.9]} 27... Rb5
{[%clk 0:00:40.2]} 28. Nb3 {[%clk 0:00:12.2]} 28... Rc8 {[%clk 0:00:37.5]} 29.
Qxe4 {[%clk 0:00:11.3]} 29... a5 {[%clk 0:00:34.2]} 30. Rd3 {[%clk 0:00:07.9]}
30... Rb4 {[%clk 0:00:28.8]} 31. Qd5 {[%clk 0:00:06.7]} 31... a4 {[%clk
0:00:27.9]} 32. Nd2 {[%clk 0:00:05.8]} 32... Rcb8 {[%clk 0:00:26.2]} 33. Kd1
{[%clk 0:00:05]} 33... Qg4+ {[%clk 0:00:20.3]} 34. Qf3 {[%clk 0:00:04.5]} 34...
Qg6 {[%clk 0:00:17.9]} 35. Ne4 {[%clk 0:00:03.7]} 35... Rb1+ {[%clk 0:00:17.3]}
36. Kd2 {[%clk 0:00:03.3]} 36... Rxe1 {[%clk 0:00:17.1]} 37. Kxe1 {[%clk
0:00:04.2]} 37... Be5 {[%clk 0:00:14.5]} 38. d7 {[%clk 0:00:03.6]} 38... Rd8
{[%clk 0:00:14.4]} 39. Nc5 {[%clk 0:00:02.6]} 39... Qg5 {[%clk 0:00:10.5]} 40.
Qd5 {[%clk 0:00:02.7]} 40... Qh4+ {[%clk 0:00:08.4]} 41. Kd2 {[%clk 0:00:02.7]}
41... Bf4+ {[%clk 0:00:08.2]} 42. Kd1 {[%clk 0:00:03.1]} 42... Qf2 {[%clk
0:00:07.1]} 43. Nb7 {[%clk 0:00:02.5]} 43... Qf1# {[%clk 0:00:06.5]} 0-1

[Event "Early-Titled-Tuesday-Blitz-September-12-2023"]
[Site "Chess.com"]
[Date "2023.09.12"]
[Round "6"]
[White "OK97"]
[Black "Sina_Movahed"]
[Result "1-0"]
[WhiteElo "2838"]
[BlackElo "3038"]
[TimeControl "180+1"]
[EndTime "9:06:43 PDT"]
[Termination "OK97 won on time"]

1. d4 {[%clk 0:03:00.9]} 1... Nf6 {[%clk 0:02:59.2]} 2. Nf3 {[%clk 0:03:00.7]}
2... g6 {[%clk 0:02:57.2]} 3. g3 {[%clk 0:03:00.6]} 3... Bg7 {[%clk 0:02:57.8]}
4. Bg2 {[%clk 0:03:01.3]} 4... O-O {[%clk 0:02:58.7]} 5. O-O {[%clk 0:03:01.3]}
5... d6 {[%clk 0:02:59.6]} 6. Re1 {[%clk 0:03:01.6]} 6... Nbd7 {[%clk
0:03:00.5]} 7. e4 {[%clk 0:03:01.8]} 7... e5 {[%clk 0:03:00.9]} 8. Nc3 {[%clk
0:03:02.5]} 8... Re8 {[%clk 0:02:59.4]} 9. h3 {[%clk 0:03:02.3]} 9... c6 {[%clk
0:02:57.2]} 10. a4 {[%clk 0:03:02.1]} 10... a5 {[%clk 0:02:56.8]} 11. Be3 {[%clk
0:03:00.3]} 11... Qc7 {[%clk 0:02:51.2]} 12. Qd2 {[%clk 0:02:59.7]} 12... exd4
{[%clk 0:02:25]} 13. Bxd4 {[%clk 0:03:00.6]} 13... Ne5 {[%clk 0:02:23.7]} 14.
Nh2 {[%clk 0:02:51.2]} 14... Nc4 {[%clk 0:02:20.7]} 15. Qc1 {[%clk 0:02:51.5]}
15... Be6 {[%clk 0:02:12]} 16. b3 {[%clk 0:02:47.1]} 16... Nb6 {[%clk
0:01:58.2]} 17. Qd2 {[%clk 0:02:36.5]} 17... d5 {[%clk 0:01:44.5]} 18. e5 {[%clk
0:02:21.5]} 18... Nfd7 {[%clk 0:01:37.5]} 19. f4 {[%clk 0:02:21.7]} 19... f6
{[%clk 0:01:31.5]} 20. exf6 {[%clk 0:02:14.3]} 20... Nxf6 {[%clk 0:01:32.4]} 21.
Nf3 {[%clk 0:02:08.6]} 21... Nbd7 {[%clk 0:01:26.4]} 22. Ng5 {[%clk 0:02:06]}
22... Nf8 {[%clk 0:01:20.5]} 23. Re2 {[%clk 0:01:43.3]} 23... h6 {[%clk
0:01:07.2]} 24. Nxe6 {[%clk 0:01:39.5]} 24... Nxe6 {[%clk 0:01:08.1]} 25. Be5
{[%clk 0:01:37]} 25... Qf7 {[%clk 0:01:07.2]} 26. Rae1 {[%clk 0:01:35.7]} 26...
Nh5 {[%clk 0:01:06.3]} 27. Kh2 {[%clk 0:01:31.2]} 27... Rad8 {[%clk 0:01:00.6]}
28. Nd1 {[%clk 0:01:24.2]} 28... g5 {[%clk 0:00:45.4]} 29. Bxg7 {[%clk
0:00:58.9]} 29... Nhxg7 {[%clk 0:00:46.3]} 30. fxg5 {[%clk 0:00:49.3]} 30...
Nxg5 {[%clk 0:00:34.1]} 31. Qxa5 {[%clk 0:00:43.5]} 31... Rf8 {[%clk 0:00:33.9]}
32. Ne3 {[%clk 0:00:31.5]} 32... Rd6 {[%clk 0:00:20.6]} 33. Ng4 {[%clk
0:00:30.4]} 33... Nf5 {[%clk 0:00:19.6]} 34. Qb4 {[%clk 0:00:27.1]} 34... Qc7
{[%clk 0:00:18.8]} 35. Ne5 {[%clk 0:00:26.1]} 35... Re6 {[%clk 0:00:18.3]} 36.
Qg4 {[%clk 0:00:25.8]} 36... Ng7 {[%clk 0:00:08.6]} 37. h4 {[%clk 0:00:23.4]}
37... Ne4 {[%clk 0:00:08.8]} 38. Bxe4 {[%clk 0:00:21.8]} 38... dxe4 {[%clk
0:00:08.4]} 39. Rxe4 {[%clk 0:00:20.4]} 39... Rf2+ {[%clk 0:00:08.2]} 40. Kh3
{[%clk 0:00:20.7]} 40... Ref6 {[%clk 0:00:05.8]} 41. Nd7 {[%clk 0:00:17.8]}
41... Rf7 {[%clk 0:00:03.9]} 42. Re8+ {[%clk 0:00:16.8]} 42... Kh7 {[%clk
0:00:04.6]} 43. Qe4+ {[%clk 0:00:15.8]} 43... Nf5 {[%clk 0:00:04.2]} 44. Ne5
{[%clk 0:00:06.5]} 44... Kg7 {[%clk 0:00:03.3]} 45. Qg4+ {[%clk 0:00:05.7]} 1-0

[Event "Early-Titled-Tuesday-Blitz-September-12-2023"]
[Site "Chess.com"]
[Date "2023.09.12"]
[Round "6"]
[White "BlueWizzard"]
[Black "Rakhmanov_Aleksandr"]
[Result "0-1"]
[WhiteElo "2960"]
[BlackElo "2809"]
[TimeControl "180+1"]
[EndTime "9:06:43 PDT"]
[Termination "Rakhmanov_Aleksandr won on time"]

1. e4 {[%clk 0:02:59.7]} 1... c5 {[%clk 0:02:59.7]} 2. Nf3 {[%clk 0:02:59.5]}
2... Nf6 {[%clk 0:02:59.9]} 3. Qe2 {[%clk 0:02:56.1]} 3... d5 {[%clk 0:02:57.9]}
4. Nc3 {[%clk 0:02:51.6]} 4... dxe4 {[%clk 0:02:52.5]} 5. Nxe4 {[%clk
0:02:52.5]} 5... Nxe4 {[%clk 0:02:52.4]} 6. Qxe4 {[%clk 0:02:53.4]} 6... Nc6
{[%clk 0:02:50.7]} 7. b3 {[%clk 0:02:42.9]} 7... Be6 {[%clk 0:02:44.8]} 8. Bc4
{[%clk 0:02:40.2]} 8... Bxc4 {[%clk 0:02:39.5]} 9. bxc4 {[%clk 0:02:41.1]} 9...
Qd7 {[%clk 0:02:34.3]} 10. O-O {[%clk 0:02:37.7]} 10... e6 {[%clk 0:02:34.7]}
11. Bb2 {[%clk 0:02:35.3]} 11... Rd8 {[%clk 0:02:31.6]} 12. Rad1 {[%clk
0:02:32.8]} 12... Nd4 {[%clk 0:02:26.8]} 13. Bxd4 {[%clk 0:02:18.2]} 13... cxd4
{[%clk 0:02:27.7]} 14. Qg4 {[%clk 0:02:08]} 14... h5 {[%clk 0:02:26.6]} 15. Qg5
{[%clk 0:02:05.3]} 15... h4 {[%clk 0:02:04.4]} 16. h3 {[%clk 0:02:01.8]} 16...
g6 {[%clk 0:02:01.7]} 17. Qe5 {[%clk 0:01:48]} 17... Rh5 {[%clk 0:01:59.9]} 18.
Qe4 {[%clk 0:01:44.3]} 18... d3 {[%clk 0:01:51.8]} 19. cxd3 {[%clk 0:01:32.6]}
19... Qxd3 {[%clk 0:01:48]} 20. Qxb7 {[%clk 0:01:32.4]} 20... Bc5 {[%clk
0:01:48.6]} 21. Rde1 {[%clk 0:01:26.9]} 21... Rf5 {[%clk 0:01:27.9]} 22. Re5
{[%clk 0:01:18]} 22... Kf8 {[%clk 0:01:13.2]} 23. Rxf5 {[%clk 0:01:16.5]} 23...
Qxf5 {[%clk 0:01:10.5]} 24. Qb2 {[%clk 0:00:59]} 24... Kg8 {[%clk 0:01:00.6]}
25. d4 {[%clk 0:00:59.2]} 25... Qf6 {[%clk 0:00:55.2]} 26. Rd1 {[%clk
0:00:50.4]} 26... Bb6 {[%clk 0:00:55.3]} 27. Qc3 {[%clk 0:00:45]} 27... Qf4
{[%clk 0:00:47.1]} 28. Qe3 {[%clk 0:00:44.1]} 28... Qf6 {[%clk 0:00:40.4]} 29.
Rd3 {[%clk 0:00:40.8]} 29... Kg7 {[%clk 0:00:39.3]} 30. a4 {[%clk 0:00:36.7]}
30... Bc7 {[%clk 0:00:39.3]} 31. Qe4 {[%clk 0:00:32.4]} 31... Rb8 {[%clk
0:00:37.2]} 32. Rd1 {[%clk 0:00:32.4]} 32... Rb4 {[%clk 0:00:35.3]} 33. Qc2
{[%clk 0:00:30.2]} 33... Qf4 {[%clk 0:00:33.1]} 34. d5 {[%clk 0:00:29.3]} 34...
Qxc4 {[%clk 0:00:20.5]} 35. Qd2 {[%clk 0:00:22.7]} 35... exd5 {[%clk 0:00:18.2]}
36. Rc1 {[%clk 0:00:22.9]} 36... Bf4 {[%clk 0:00:07.3]} 37. Rxc4 {[%clk
0:00:22.5]} 37... Rb1+ {[%clk 0:00:07.4]} 38. Qe1 {[%clk 0:00:21.9]} 38... Rxe1+
{[%clk 0:00:07.3]} 39. Nxe1 {[%clk 0:00:21.2]} 39... dxc4 {[%clk 0:00:07.8]} 40.
Kf1 {[%clk 0:00:21.3]} 40... Kf6 {[%clk 0:00:06.2]} 41. Ke2 {[%clk 0:00:21.6]}
41... Ke5 {[%clk 0:00:05.7]} 42. Nc2 {[%clk 0:00:11.6]} 42... Kd5 {[%clk
0:00:04.7]} 43. Kf3 {[%clk 0:00:11.6]} 43... Bg5 {[%clk 0:00:04.2]} 44. Kg4
{[%clk 0:00:10.9]} 44... Be7 {[%clk 0:00:04.3]} 45. f4 {[%clk 0:00:07.8]} 45...
Ke4 {[%clk 0:00:04.2]} 0-1

[Event "Early-Titled-Tuesday-Blitz-September-12-2023"]
[Site "Chess.com"]
[Date "2023.09.12"]
[Round "6"]
[White "Journey_to_GrandMaster_YT"]
[Black "gaby_przz"]
[Result "1-0"]
[WhiteElo "2610"]
[BlackElo "2429"]
[TimeControl "180+1"]
[EndTime "9:06:46 PDT"]
[Termination "Journey_to_GrandMaster_YT won on time"]

1. d4 {[%clk 0:02:59.4]} 1... d5 {[%clk 0:02:59.1]} 2. Nf3 {[%clk 0:02:59.5]}
2... e6 {[%clk 0:02:56.7]} 3. c4 {[%clk 0:02:59.4]} 3... h6 {[%clk 0:02:52.8]}
4. Nc3 {[%clk 0:02:59.5]} 4... Nf6 {[%clk 0:02:49.9]} 5. Bf4 {[%clk 0:02:58.2]}
5... Bd6 {[%clk 0:02:46]} 6. Bg3 {[%clk 0:02:50.9]} 6... O-O {[%clk 0:02:44.8]}
7. e3 {[%clk 0:02:51]} 7... c5 {[%clk 0:02:44.7]} 8. cxd5 {[%clk 0:02:50.7]}
8... exd5 {[%clk 0:02:38.5]} 9. dxc5 {[%clk 0:02:47.1]} 9... Bxc5 {[%clk
0:02:39.4]} 10. Be2 {[%clk 0:02:42.3]} 10... Nc6 {[%clk 0:02:39.7]} 11. O-O
{[%clk 0:02:36.5]} 11... d4 {[%clk 0:02:32.9]} 12. Na4 {[%clk 0:02:26.6]} 12...
Bb6 {[%clk 0:02:12.4]} 13. Nxb6 {[%clk 0:02:23.7]} 13... Qxb6 {[%clk 0:02:13.3]}
14. Nxd4 {[%clk 0:02:20.5]} 14... Qxb2 {[%clk 0:02:11.6]} 15. Nxc6 {[%clk
0:02:17.9]} 15... bxc6 {[%clk 0:02:12.5]} 16. Bf3 {[%clk 0:02:16.6]} 16... Ba6
{[%clk 0:02:10.8]} 17. Re1 {[%clk 0:02:12.8]} 17... Rad8 {[%clk 0:02:02.2]} 18.
Qb3 {[%clk 0:02:12.1]} 18... Qxb3 {[%clk 0:01:27.4]} 19. axb3 {[%clk 0:02:11.6]}
19... Bb5 {[%clk 0:01:27.4]} 20. Rxa7 {[%clk 0:02:09.4]} 20... Nd5 {[%clk
0:01:22.3]} 21. h4 {[%clk 0:01:59.1]} 21... Ra8 {[%clk 0:01:07.8]} 22. Rea1
{[%clk 0:01:56.9]} 22... Rxa7 {[%clk 0:00:39.8]} 23. Rxa7 {[%clk 0:01:57.8]}
23... Rd8 {[%clk 0:00:36.3]} 24. Rb7 {[%clk 0:01:39.4]} 24... Nc3 {[%clk
0:00:33.7]} 25. Kh2 {[%clk 0:01:22.3]} 25... Kf8 {[%clk 0:00:15.7]} 26. Be5
{[%clk 0:01:15.6]} 26... Nb1 {[%clk 0:00:14.5]} 27. Bh5 {[%clk 0:00:48]} 27...
g6 {[%clk 0:00:11.1]} 28. Bf6 {[%clk 0:00:48.1]} 28... Re8 {[%clk 0:00:07.4]}
29. Bg4 {[%clk 0:00:38.7]} 29... Nd2 {[%clk 0:00:07.2]} 30. Bd7 {[%clk
0:00:34.7]} 30... Ra8 {[%clk 0:00:07.4]} 31. b4 {[%clk 0:00:28.2]} 31... Ne4
{[%clk 0:00:03.8]} 32. Bd4 {[%clk 0:00:27.4]} 32... Kg8 {[%clk 0:00:02.9]} 33.
f3 {[%clk 0:00:27.1]} 33... Nd6 {[%clk 0:00:02.9]} 34. Rc7 {[%clk 0:00:26.3]}
34... Ne8 {[%clk 0:00:02]} 35. Rc8 {[%clk 0:00:19.6]} 35... Rxc8 {[%clk
0:00:01.7]} 36. Bxc8 {[%clk 0:00:20.5]} 36... Nd6 {[%clk 0:00:01.8]} 37. Bd7
{[%clk 0:00:20]} 37... Nf5 {[%clk 0:00:02.4]} 38. Bc5 {[%clk 0:00:19.9]} 38...
Nxh4 {[%clk 0:00:01.6]} 39. Kg3 {[%clk 0:00:19.8]} 39... Nf5+ {[%clk 0:00:01.7]}
40. Bxf5 {[%clk 0:00:19.2]} 40... gxf5 {[%clk 0:00:02.6]} 41. Kf4 {[%clk
0:00:19.1]} 41... Bd3 {[%clk 0:00:03.3]} 42. Ke5 {[%clk 0:00:18.3]} 42... Bf1
{[%clk 0:00:02.2]} 43. g3 {[%clk 0:00:13.2]} 43... Bg2 {[%clk 0:00:01.8]} 44. f4
{[%clk 0:00:13.7]} 44... Be4 {[%clk 0:00:02.1]} 45. g4 {[%clk 0:00:14.2]} 45...
Bd3 {[%clk 0:00:01.1]} 46. gxf5 {[%clk 0:00:14.5]} 46... Bb5 {[%clk 0:00:01.4]}
47. Kf6 {[%clk 0:00:14.5]} 1-0

[Event "Early-Titled-Tuesday-Blitz-September-12-2023"]
[Site "Chess.com"]
[Date "2023.09.12"]
[Round "6"]
[White "vi_pranav"]
[Black "assezde36"]
[Result "1-0"]
[WhiteElo "2984"]
[BlackElo "2812"]
[TimeControl "180+1"]
[EndTime "9:06:47 PDT"]
[Termination "vi_pranav won on time"]

1. Nf3 {[%clk 0:02:58.4]} 1... d5 {[%clk 0:02:59.1]} 2. g3 {[%clk 0:02:57.8]}
2... Bg4 {[%clk 0:02:48.6]} 3. Bg2 {[%clk 0:02:56.4]} 3... Nd7 {[%clk
0:02:48.4]} 4. O-O {[%clk 0:02:56.3]} 4... e6 {[%clk 0:02:48.8]} 5. d4 {[%clk
0:02:56.1]} 5... Ngf6 {[%clk 0:02:48.4]} 6. c4 {[%clk 0:02:55]} 6... c6 {[%clk
0:02:47.6]} 7. Ne5 {[%clk 0:02:54.7]} 7... Bf5 {[%clk 0:02:43.1]} 8. Nc3 {[%clk
0:02:53.5]} 8... Bd6 {[%clk 0:02:33.8]} 9. Bf4 {[%clk 0:02:46.4]} 9... Qc7
{[%clk 0:02:29.5]} 10. cxd5 {[%clk 0:02:38]} 10... exd5 {[%clk 0:02:16]} 11. Rc1
{[%clk 0:02:36.4]} 11... a6 {[%clk 0:02:08.1]} 12. Qb3 {[%clk 0:01:37.7]} 12...
O-O {[%clk 0:01:52]} 13. Nxd5 {[%clk 0:01:00.7]} 13... Nxd5 {[%clk 0:01:51.2]}
14. Bxd5 {[%clk 0:01:01.4]} 14... Nxe5 {[%clk 0:01:47.7]} 15. dxe5 {[%clk
0:01:02]} 15... Bxe5 {[%clk 0:01:47.1]} 16. Bxe5 {[%clk 0:01:02.7]} 16... Qxe5
{[%clk 0:01:48]} 17. Bf3 {[%clk 0:01:03.4]} 17... Rab8 {[%clk 0:01:38.7]} 18.
Rfd1 {[%clk 0:01:00.9]} 18... Be6 {[%clk 0:01:37.2]} 19. Qa3 {[%clk 0:00:45.2]}
19... Rfd8 {[%clk 0:01:36.2]} 20. b3 {[%clk 0:00:42.1]} 20... h6 {[%clk
0:01:31.7]} 21. Qe7 {[%clk 0:00:34.9]} 21... Re8 {[%clk 0:01:30.1]} 22. Qb4
{[%clk 0:00:34.9]} 22... Qb2 {[%clk 0:01:08.2]} 23. Qa5 {[%clk 0:00:26]} 23...
Bh3 {[%clk 0:00:32.1]} 24. e3 {[%clk 0:00:20.2]} 24... Qe5 {[%clk 0:00:28.1]}
25. Qxe5 {[%clk 0:00:19.7]} 25... Rxe5 {[%clk 0:00:29]} 26. Rd2 {[%clk
0:00:18.8]} 26... Kf8 {[%clk 0:00:27.1]} 27. Rcd1 {[%clk 0:00:18.5]} 27... Ke7
{[%clk 0:00:27.5]} 28. Rd4 {[%clk 0:00:14.9]} 28... Be6 {[%clk 0:00:25.3]} 29.
Kg2 {[%clk 0:00:14.4]} 29... Ra5 {[%clk 0:00:24.5]} 30. R4d2 {[%clk 0:00:13.6]}
30... Rc5 {[%clk 0:00:24.8]} 31. e4 {[%clk 0:00:13.5]} 31... a5 {[%clk
0:00:24.9]} 32. Be2 {[%clk 0:00:12.8]} 32... Rc3 {[%clk 0:00:23.4]} 33. f4
{[%clk 0:00:12.7]} 33... g6 {[%clk 0:00:16.8]} 34. h3 {[%clk 0:00:07.8]} 34...
h5 {[%clk 0:00:16.2]} 35. Bf3 {[%clk 0:00:07]} 35... Rh8 {[%clk 0:00:15.4]} 36.
Re1 {[%clk 0:00:04.7]} 36... Ra8 {[%clk 0:00:14.8]} 37. f5 {[%clk 0:00:04.6]}
37... Bd7 {[%clk 0:00:13]} 38. f6+ {[%clk 0:00:05]} 38... Ke8 {[%clk 0:00:08.5]}
39. g4 {[%clk 0:00:05.5]} 39... h4 {[%clk 0:00:07.9]} 40. e5 {[%clk 0:00:04.8]}
40... a4 {[%clk 0:00:06.1]} 41. Red1 {[%clk 0:00:04]} 41... Be6 {[%clk
0:00:05.3]} 42. bxa4 {[%clk 0:00:04.4]} 42... Ra3 {[%clk 0:00:04.6]} 43. Rb1
{[%clk 0:00:03.9]} 43... Ra7 {[%clk 0:00:04.1]} 44. Bxc6+ {[%clk 0:00:03.2]} 1-0

[Event "Early-Titled-Tuesday-Blitz-September-12-2023"]
[Site "Chess.com"]
[Date "2023.09.12"]
[Round "6"]
[White "chessdjw"]
[Black "Fandorine"]
[Result "1-0"]
[WhiteElo "2765"]
[BlackElo "2913"]
[TimeControl "180+1"]
[EndTime "9:06:47 PDT"]
[Termination "chessdjw won by resignation"]

1. e4 {[%clk 0:02:55.5]} 1... e5 {[%clk 0:02:59]} 2. Nf3 {[%clk 0:02:55.4]} 2...
Nc6 {[%clk 0:02:59.5]} 3. Bb5 {[%clk 0:02:54.5]} 3... a6 {[%clk 0:02:59.9]} 4.
Ba4 {[%clk 0:02:54.7]} 4... Nf6 {[%clk 0:03:00.5]} 5. O-O {[%clk 0:02:53.7]}
5... Be7 {[%clk 0:03:01]} 6. d3 {[%clk 0:02:52.7]} 6... d6 {[%clk 0:03:01.1]} 7.
c3 {[%clk 0:02:52.2]} 7... O-O {[%clk 0:03:01.1]} 8. h3 {[%clk 0:02:52]} 8... h6
{[%clk 0:02:58.6]} 9. Re1 {[%clk 0:02:51.4]} 9... Re8 {[%clk 0:02:59]} 10. Nbd2
{[%clk 0:02:51.1]} 10... Bf8 {[%clk 0:02:59.3]} 11. Nf1 {[%clk 0:02:51]} 11...
b5 {[%clk 0:02:59.5]} 12. Bb3 {[%clk 0:02:48.3]} 12... Be6 {[%clk 0:02:59.5]}
13. Ng3 {[%clk 0:02:44]} 13... Bxb3 {[%clk 0:02:50.2]} 14. axb3 {[%clk
0:02:40.1]} 14... d5 {[%clk 0:02:50.7]} 15. b4 {[%clk 0:02:32.2]} 15... a5
{[%clk 0:02:41.5]} 16. bxa5 {[%clk 0:02:21.3]} 16... Rxa5 {[%clk 0:02:35.3]} 17.
Rxa5 {[%clk 0:02:18.1]} 17... Nxa5 {[%clk 0:02:36.2]} 18. b4 {[%clk 0:01:56.9]}
18... Nc6 {[%clk 0:02:32.5]} 19. Qb3 {[%clk 0:01:56]} 19... Qd7 {[%clk
0:02:18.9]} 20. Be3 {[%clk 0:01:45.7]} 20... Ra8 {[%clk 0:02:05.6]} 21. Bd2
{[%clk 0:01:09]} 21... dxe4 {[%clk 0:01:55.3]} 22. dxe4 {[%clk 0:01:01.6]} 22...
Qd3 {[%clk 0:01:44.2]} 23. Bc1 {[%clk 0:00:26.3]} 23... Ra1 {[%clk 0:01:26.3]}
24. Rd1 {[%clk 0:00:25.3]} 24... Rb1 {[%clk 0:01:00]} 25. Rxd3 {[%clk
0:00:21.9]} 25... Rxb3 {[%clk 0:00:59.7]} 26. Nd2 {[%clk 0:00:16.3]} 26... Nxb4
{[%clk 0:00:58.2]} 27. Rf3 {[%clk 0:00:16.2]} 27... Rxc3 {[%clk 0:00:48.3]} 28.
Rxc3 {[%clk 0:00:15.9]} 28... c5 {[%clk 0:00:49.2]} 29. Kf1 {[%clk 0:00:11.7]}
29... Nd7 {[%clk 0:00:43.9]} 30. Ba3 {[%clk 0:00:09.4]} 30... Nc6 {[%clk
0:00:38.4]} 31. Rd3 {[%clk 0:00:08.3]} 31... Nd4 {[%clk 0:00:22.3]} 32. Bb2
{[%clk 0:00:08.4]} 32... c4 {[%clk 0:00:17.9]} 33. Re3 {[%clk 0:00:09]} 33...
Bc5 {[%clk 0:00:15.5]} 34. Nf3 {[%clk 0:00:08.4]} 34... f6 {[%clk 0:00:11.3]}
35. Re1 {[%clk 0:00:08.5]} 35... Nb8 {[%clk 0:00:09.3]} 36. Rd1 {[%clk
0:00:08.4]} 36... Nbc6 {[%clk 0:00:09.9]} 37. Rc1 {[%clk 0:00:07.9]} 37... g6
{[%clk 0:00:08.9]} 38. Ne2 {[%clk 0:00:08]} 38... Nb3 {[%clk 0:00:09.1]} 39. Rd1
{[%clk 0:00:07.8]} 39... Kf7 {[%clk 0:00:09.8]} 40. Rd5 {[%clk 0:00:08]} 40...
Ke6 {[%clk 0:00:09]} 41. Nc3 {[%clk 0:00:07.9]} 41... Ne7 {[%clk 0:00:08.1]} 42.
Rd8 {[%clk 0:00:06.2]} 42... b4 {[%clk 0:00:07.6]} 43. Nd5 {[%clk 0:00:06.8]}
43... Nc6 {[%clk 0:00:03.1]} 44. Rc8 {[%clk 0:00:05.5]} 44... Kd7 {[%clk
0:00:03.8]} 45. Rc7+ {[%clk 0:00:06]} 45... Kd6 {[%clk 0:00:04.4]} 46. Rf7
{[%clk 0:00:06.3]} 46... c3 {[%clk 0:00:04.5]} 47. Rxf6+ {[%clk 0:00:06.6]}
47... Kd7 {[%clk 0:00:05.1]} 48. Nxc3 {[%clk 0:00:07.1]} 48... bxc3 {[%clk
0:00:05.5]} 49. Bxc3 {[%clk 0:00:08]} 49... Nbd4 {[%clk 0:00:06.2]} 50. Nxd4
{[%clk 0:00:07.2]} 50... exd4 {[%clk 0:00:06.8]} 51. Bd2 {[%clk 0:00:07.5]}
51... Ne5 {[%clk 0:00:05.1]} 52. f4 {[%clk 0:00:07.5]} 52... d3 {[%clk 0:00:06]}
53. fxe5 {[%clk 0:00:07.4]} 1-0